fUSD/lending_fUSD_20260121
["ID","MTS","AMOUNT","RATE_DAILY","PERIOD"]
[402934079,1768995300885,-2635.58,0.00043087,120]
[402934080,1768995300954,-500.0,0.00043087,120]
[402934081,1768995301023,-2635.58,0.00043087,120]
[402934082,1768995301087,-500.0,0.00043087,120]
[402934083,1768995301155,-2635.58,0.00043087,120]
[402934084,1768995301219,-2635.58,0.00043087,120]
[402934085,1768995301281,-236.16719084,0.00043087,120]
[402934086,1768995301338,-2635.58,0.00043087,120]
[402934087,1768995301395,-500.0,0.00043087,120]
[402934088,1768995301455,-480.39780555,0.00043087,120]
[402934089,1768995301521,-2635.58,0.00043087,120]
[402934090,1768995301586,-500.0,0.00043087,120]
[402934091,1768995301652,-2635.58,0.00043087,120]
[402934092,1768995301719,-2635.58,0.00043087,120]
[402934093,1768995301786,-500.0,0.00043087,120]
[402934094,1768995301849,-2635.58,0.00043087,120]
[402934095,1768995301911,-500.0,0.00043087,120]
[402934096,1768995301982,-2635.58,0.00043087,120]
[402934097,1768995302051,-2635.58,0.00043087,120]
[402934098,1768995302120,-500.0,0.00043087,120]
[402934099,1768995302193,-2635.58,0.00043087,120]
[402934100,1768995302262,-500.0,0.00043087,120]
[402934101,1768995302329,-500.0,0.00043087,120]
[402934102,1768995302392,-2635.58,0.00043087,120]
[402934103,1768995302458,-500.0,0.00043087,120]
[402934104,1768995302522,-500.0,0.00043087,120]
[402934105,1768995302586,-2635.58,0.00043087,120]
[402934106,1768995302651,-500.0,0.00043087,120]
[402934107,1768995302714,-500.0,0.00043087,120]
[402934108,1768995302780,-2635.58,0.00043087,120]
[402934109,1768995302844,-500.0,0.00043087,120]
[402934110,1768995302907,-500.0,0.00043087,120]
[402934111,1768995302977,-500.0,0.00043087,120]
[402934112,1768995303052,-2635.58,0.00043087,120]
[402934113,1768995303144,-500.0,0.00043087,120]
[402934114,1768995303229,-500.0,0.00043087,120]
[402934115,1768995303300,-500.0,0.00043087,120]
[402934116,1768995303370,-2635.58,0.00043087,120]
[402934117,1768995303441,-500.0,0.00043087,120]
[402934118,1768995303510,-373.45239668,0.00043087,120]
[402934119,1768995303583,-500.0,0.00043087,120]
[402934120,1768995303649,-2635.58,0.00043087,120]
[402934121,1768995303720,-500.0,0.00043087,120]
[402934122,1768995303790,-500.0,0.00043087,120]
[402934123,1768995303861,-2635.58,0.00043087,120]
[402934124,1768995303935,-500.0,0.00043087,120]
[402934125,1768995304011,-524.65512709,0.00043087,120]
[402934126,1768995304085,-2635.64054668,0.00043087,120]
[402934127,1768995304157,-500.0,0.00043087,120]
[402934128,1768995304226,-500.0,0.00043087,120]
[402934129,1768995304299,-471.1888927,0.00043087,120]
[402934130,1768995304372,-500.0,0.00043087,120]
[402934131,1768995304443,-500.0,0.00043087,120]
[402934132,1768995304515,-500.0,0.00043087,120]
[402934133,1768995304585,-500.0,0.00043087,120]
[402934134,1768995304655,-500.0,0.00043087,120]
[402934135,1768995304727,-500.0,0.00043087,120]
[402934136,1768995304798,-500.0,0.00043087,120]
[402934137,1768995304867,-518.24532198,0.00043087,120]
[402934138,1768995304942,-500.0,0.00043087,120]
[402934139,1768995305022,-500.0,0.00043087,120]
[402934140,1768995305100,-500.0,0.00043087,120]
[402934141,1768995305181,-500.0,0.00043087,120]
[402934142,1768995305251,-500.0,0.00043087,120]
[402934143,1768995305322,-500.0,0.00043087,120]
[402934144,1768995305395,-500.0,0.00043087,120]
[402934145,1768995305471,-500.0,0.00043087,120]
[402934146,1768995305545,-500.0,0.00043087,120]
[402934147,1768995305618,-500.0,0.00043087,120]
[402934148,1768995305690,-500.0,0.00043087,120]
[402934149,1768995305762,-500.0,0.00043087,120]
[402934150,1768995305832,-500.0,0.00043087,120]
[402934151,1768995305902,-500.0,0.00043087,120]
[402934152,1768995305980,-500.0,0.00043087,120]
[402934153,1768995306056,-500.0,0.00043087,120]
[402934154,1768995306136,-500.0,0.00043087,120]
[402934155,1768995306209,-500.0,0.00043087,120]
[402934156,1768995306279,-500.0,0.00043087,120]
[402934157,1768995306346,-500.0,0.00043087,120]
[402934158,1768995306413,-590.4289091,0.00043087,120]
[402934159,1768995306482,-500.0,0.00043087,120]
[402934160,1768995306551,-500.0,0.00043087,120]
[402934161,1768995306621,-500.0,0.00043087,120]
[402934162,1768995306691,-225.77468193,0.00043087,120]
[402934163,1768995306761,-500.0,0.00043087,120]
[402934164,1768995306828,-500.0,0.00043087,120]
[402934165,1768995306896,-500.0,0.00043087,120]
[402934166,1768995306967,-500.0,0.00043087,120]
[402934167,1768995307039,-500.0,0.00043087,120]
[402934168,1768995307112,-500.0,0.00043087,120]
[402934169,1768995307740,500.0,0.00043087,120]
[402934170,1768995307812,500.0,0.00043087,120]
[402934171,1768995307891,500.0,0.00043087,120]
[402934172,1768995307969,500.0,0.00043087,120]
[402934173,1768995308058,500.0,0.00043087,120]
[402934174,1768995308135,500.0,0.00043087,120]
[402934175,1768995308216,500.0,0.00043087,120]
[402934176,1768995308297,500.0,0.00043087,120]
[402934177,1768995308372,500.0,0.00043087,120]
[402934178,1768995308450,500.0,0.00043087,120]
[402934179,1768995308541,500.0,0.00043087,120]
[402934180,1768995308629,500.0,0.00043087,120]
[402934181,1768995308722,500.0,0.00043087,120]
[402934182,1768995308803,500.0,0.00043087,120]
[402934183,1768995308888,500.0,0.00043087,120]
[402934184,1768995308980,536.01233049,0.00043087,120]
[402934185,1768995309072,500.0,0.00043087,120]
[402934186,1768995309156,500.0,0.00043087,120]
[402934187,1768995309232,500.0,0.00043087,120]
[402934188,1768995309307,500.0,0.00043087,120]
[402934189,1768995309386,500.0,0.00043087,120]
[402934190,1768995309463,500.0,0.00043087,120]
[402934191,1768995309536,500.0,0.00043087,120]
[402934192,1768995309619,500.0,0.00043087,120]
[402934193,1768995309691,500.0,0.00043087,120]
[402934194,1768995309763,426.3827068,0.00043087,120]
[402934195,1768995309880,-151.59,0.00019178,30]
[402934196,1768995309954,-203.58,0.00024418,30]
[402934197,1768995310025,-151.59,0.00024505,30]
[402934198,1768995310094,-548.39,0.00024771,120]
[402934199,1768995310166,-150.00358439,0.0002555,32]
[402934200,1768995310237,-150.00358439,0.00026804,37]
[402934201,1768995310305,-174.4,0.00027397,120]
[402934202,1768995310379,-150.00358439,0.00028059,41]
[402934203,1768995310448,-173.57,0.00028767,120]
[402934204,1768995310518,-174.4,0.00028767,120]
[402934205,1768995310588,-150.00358439,0.00029313,46]
[402934206,1768995310658,-151.59,0.00029833,30]
[402934207,1768995310730,-150.00358439,0.00030568,50]
[402934208,1768995310800,-150.00358439,0.00031822,54]
[402934209,1768995310871,-150.00358439,0.00033077,59]
[402934210,1768995310943,-150.00358456,0.00034331,63]
[402934211,1768995311021,-151.59,0.0003516,30]
[402934212,1768995311092,-178.06433328,0.00035586,68]
[402934213,1768995311162,-234.643753,0.00035589,30]
[402934214,1768995311232,-600.0,0.00036,120]
[402934215,1768995311302,-600.0,0.00036,120]
[402934216,1768995311371,-600.0,0.00036,120]
[402934217,1768995311440,-178.06433328,0.0003684,72]
[402934218,1768995311507,-10949.26844914,0.00036888,60]
[402934219,1768995311579,-600.0,0.00038,120]
[402934220,1768995311650,-600.0,0.00038,120]
[402934221,1768995311718,-600.0,0.00038,120]
[402934222,1768995311788,-178.06433328,0.00038094,78]
[402934223,1768995311857,-151.0,0.00038356,120]
[402934224,1768995311930,-151.0,0.00038356,120]
[402934225,1768995312003,-151.0,0.00038356,120]
[402934226,1768995312072,-151.0,0.00038356,120]
[402934227,1768995312144,-1841.914748,0.00038356,120]
[402934228,1768995312216,-1841.914748,0.00038356,120]
[402934229,1768995312288,-1841.914748,0.00038356,120]
[402934230,1768995312359,-1841.914748,0.00038356,120]
[402934231,1768995312431,-2397.3611,0.00038356,120]
[402934232,1768995312501,-2397.3611,0.00038356,120]
[402934233,1768995312574,-2397.3611,0.00038356,120]
[402934234,1768995312649,-2397.3611,0.00038356,120]
[402934235,1768995312718,-2271.058249,0.00038356,120]
[402934236,1768995312786,-2271.058249,0.00038356,120]
[402934237,1768995312854,-2271.058249,0.00038356,120]
[402934238,1768995312925,-2271.058249,0.00038356,120]
[402934239,1768995312999,-1051.36,0.000385,30]
[402934240,1768995313072,-2271.058249,0.0003878,120]
[402934241,1768995313146,-2271.058249,0.0003878,120]
[402934242,1768995313220,-2271.058249,0.0003878,120]
[402934243,1768995313295,-2271.058249,0.0003878,120]
[402934244,1768995313394,-396.85,0.000389,120]
[402934245,1768995313468,-1841.914748,0.00039,120]
[402934246,1768995313544,-1841.914748,0.00039,120]
[402934247,1768995313617,-1841.914748,0.00039,120]
[402934248,1768995313845,-1841.914748,0.00039,120]
[402934249,1768995313918,-2397.3611,0.00039,120]
[402934250,1768995313991,-2397.3611,0.00039,120]
[402934251,1768995314070,-2397.3611,0.00039,120]
[402934252,1768995314143,-2397.3611,0.00039,120]
[402934253,1768995314217,-178.06433328,0.00039349,86]
[402934254,1768995314289,-1496.02,0.000394,30]
[402934255,1768995314363,-600.0,0.000396,120]
[402934256,1768995314436,-600.0,0.000396,120]
[402934257,1768995314507,-600.0,0.000396,120]
[402934258,1768995314582,-600.0,0.000396,120]
[402934259,1768995314657,-151.0,0.000398,120]
[402934260,1768995314728,-151.0,0.000398,120]
[402934261,1768995314800,-2271.058249,0.000398,120]
[402934262,1768995314873,-2271.058249,0.000398,120]
[402934263,1768995314951,-2271.058249,0.000398,120]
[402934264,1768995315025,-2271.058249,0.000398,120]
[402934265,1768995315099,-2591.94724505,0.0003988,30]
[402934266,1768995315175,-4423.75659234,0.0004,30]
[402934267,1768995315248,-250000.0,0.0004,30]
[402934268,1768995315320,-1841.914748,0.0004,120]
[402934269,1768995315412,-1841.914748,0.0004,120]
[402934270,1768995315492,-1841.914748,0.0004,120]
[402934271,1768995315566,-1841.914748,0.0004,120]
[402934272,1768995315641,-2397.3611,0.0004,120]
[402934273,1768995315715,-2397.3611,0.0004,120]
[402934274,1768995315788,-2397.3611,0.0004,120]
[402934275,1768995315860,-2397.3611,0.0004,120]
[402934276,1768995315937,-151.59,0.00040487,120]
[402934277,1768995316019,-45522.75,0.000405,120]
[402934278,1768995316102,-1496.02,0.000406,30]
[402934279,1768995316180,-178.06433328,0.00040603,94]
[402934280,1768995316255,-4075.11190999,0.000408,60]
[402934281,1768995316329,-1787.449,0.0004085,59]
[402934282,1768995316404,-200.0,0.00041,120]
[402934283,1768995316485,-600.0,0.00041,120]
[402934284,1768995316561,-600.0,0.00041,120]
[402934285,1768995316636,-600.0,0.00041,120]
[402934286,1768995316710,-600.0,0.00041,120]
[402934287,1768995316782,-399.24178651,0.00041,120]
[402934288,1768995316852,-988.99,0.00041,120]
[402934289,1768995316925,-391.07292166,0.00041068,120]
[402934290,1768995317000,-500.0,0.00041095,120]
[402934291,1768995317078,-500.0,0.00041095,120]
[402934292,1768995317159,-500.0,0.00041095,120]
[402934293,1768995317235,-509.0,0.00041095,120]
[402934294,1768995317312,-600.0,0.00041096,120]
[402934295,1768995317385,-1000.0,0.00041096,60]
[402934296,1768995317458,-1000.0,0.00041096,60]
[402934297,1768995317531,-1000.0,0.00041096,60]
[402934298,1768995317605,-1000.0,0.00041096,60]
[402934299,1768995317682,-1000.0,0.00041096,60]
[402934300,1768995317754,-10000.0,0.00041096,60]
[402934301,1768995317825,-10000.0,0.00041096,60]
[402934302,1768995317894,-10000.0,0.00041096,60]
[402934303,1768995317969,-173.56,0.00041096,120]
[402934304,1768995318056,-174.39,0.00041096,120]
[402934305,1768995318139,-150.0,0.00041143,30]
[402934306,1768995318223,-600.0,0.0004137,120]
[402934307,1768995318296,-150.0,0.00041625,30]
[402934308,1768995318367,-600.0,0.00041644,120]
[402934309,1768995318439,-10785.0,0.000417,117]
[402934310,1768995318510,-150.0,0.00041786,30]
[402934311,1768995318584,-200.0,0.00041833,120]
[402934312,1768995318657,-178.06433328,0.00041858,102]
[402934313,1768995318728,-1496.02,0.000419,30]
[402934314,1768995318801,-600.0,0.00041918,120]
[402934315,1768995318870,-916.59079203,0.00042,120]
[402934316,1768995318942,-2500.0,0.00042,30]
[402934317,1768995319017,-600.0,0.00042,120]
[402934318,1768995319092,-600.0,0.00042,120]
[402934319,1768995319179,-600.0,0.00042,120]
[402934320,1768995319254,-441.68,0.00042,120]
[402934321,1768995319335,-150.0,0.00042,30]
[402934322,1768995319410,-150.0,0.00042,30]
[402934323,1768995319482,-4848.1815752,0.00042,120]
[402934324,1768995319554,-150.0,0.00042188,30]
[402934325,1768995319629,-600.0,0.00042192,120]
[402934326,1768995319702,-150.0,0.00042429,30]
[402934327,1768995319773,-600.0,0.00042466,120]
[402934328,1768995319842,-33356.8034772,0.00042487,30]
[402934329,1768995319915,-334.54,0.0004263,90]
[402934330,1768995319988,-2219.33476089,0.000427,120]
[402934331,1768995320064,-18993.0,0.000427,80]
[402934332,1768995320137,-600.0,0.0004274,120]
[402934333,1768995320211,-3855.15,0.0004275,120]
[402934334,1768995320285,-150.0,0.0004275,30]
[402934335,1768995320357,-150.0,0.0004275,30]
[402934336,1768995320430,-228.33250906,0.00042842,113]
[402934337,1768995320505,-292.14590945,0.00042897,120]
[402934338,1768995320579,-1496.02,0.000429,30]
[402934339,1768995320664,-151.0,0.000429,120]
[402934340,1768995320736,-151.0,0.000429,120]
[402934341,1768995320807,-2271.058249,0.000429,120]
[402934342,1768995321134,-2271.058249,0.000429,120]
[402934343,1768995321209,-2271.058249,0.000429,120]
[402934344,1768995321285,-2271.058249,0.000429,120]
[402934345,1768995321357,-10000.0,0.00043,120]
[402934346,1768995321430,-600.0,0.00043014,120]
[402934347,1768995321501,-150.0,0.00043071,30]
[402934348,1768995321577,-151.0,0.00043085,120]
[402934349,1768995321656,-234.591443,0.00043085,120]
[402934350,1768995321728,-1841.914748,0.00043086,120]
[402934351,1768995321800,-1841.914748,0.00043086,120]
[402934352,1768995321872,-1841.914748,0.00043086,120]
[402934353,1768995321949,-1841.914748,0.00043086,120]
[402934354,1768995322020,-2397.3611,0.00043086,120]
[402934355,1768995322097,-2397.3611,0.00043086,120]
[402934356,1768995322168,-2397.3611,0.00043086,120]
[402934357,1768995322241,-2397.3611,0.00043086,120]
[402934358,1768995322314,-50000.0,0.00043086,41]
[402934359,1768995322385,-1841.914748,0.00043087,120]
[402934360,1768995322458,-1841.914748,0.00043087,120]
[402934361,1768995322530,-1841.914748,0.00043087,120]
[402934362,1768995322601,-1841.914748,0.00043087,120]
[402934363,1768995322672,-2397.3611,0.00043087,120]
[402934364,1768995322742,-2397.3611,0.00043087,120]
[402934365,1768995322813,-2397.3611,0.00043087,120]
[402934366,1768995322882,-2397.361104,0.00043087,120]
[402934367,1768995322955,-2271.058249,0.00043087,120]
[402934368,1768995323029,-2271.058249,0.00043087,120]
[402934369,1768995323104,-2271.058249,0.00043087,120]
[402934370,1768995323181,-2271.05825,0.00043087,120]
[402934371,1768995323257,-152.61389158,0.00043087,30]
[402934372,1768995323331,-152.61389158,0.00043087,30]
[402934373,1768995323406,-152.61389158,0.00043087,30]
[402934374,1768995323490,-333.9,0.00043096,30]
[402934375,1768995323568,-178.06433328,0.00043112,110]
[402934376,1768995323646,-250.0,0.00043286,30]
[402934377,1768995323716,-514.84070869,0.00043286,30]
[402934378,1768995323787,-2567.0,0.00043286,30]
[402934379,1768995323858,-2000.0,0.00043286,30]
[402934380,1768995323930,-2000.0,0.00043286,30]
[402934381,1768995324006,-500.0,0.00043286,30]
[402934382,1768995324079,-500.0,0.00043286,30]
[402934383,1768995324151,-500.0,0.00043286,30]
[402934384,1768995324222,-265.25234618,0.00043286,30]
[402934385,1768995324294,-250.0,0.00043286,30]
[402934386,1768995324364,-1000.0,0.00043286,30]
[402934387,1768995324433,-500.0,0.00043286,30]
[402934388,1768995324503,-250.0,0.00043286,30]
[402934389,1768995324571,-151.0,0.00043286,30]
[402934390,1768995324643,-151.0,0.00043286,30]
[402934391,1768995324713,-600.0,0.00043288,120]
[402934392,1768995324781,-150.0,0.00043313,30]
[402934393,1768995324849,-500.0,0.00043356,60]
[402934394,1768995324919,-500.0,0.00043356,60]
[402934395,1768995324991,-250.0,0.00043499,30]
[402934396,1768995325063,-478.75725327,0.00043499,30]
[402934397,1768995325135,-2567.0,0.00043499,30]
[402934398,1768995325207,-2000.0,0.00043499,30]
[402934399,1768995325278,-2000.0,0.00043499,30]
[402934400,1768995325348,-250.0,0.00043499,120]
[402934401,1768995325418,-496.47127164,0.00043499,120]
[402934402,1768995325486,-2567.0,0.00043499,120]
[402934403,1768995325573,-2000.0,0.00043499,120]
[402934404,1768995325649,-2000.0,0.00043499,120]
[402934405,1768995325718,-500.0,0.00043499,30]
[402934406,1768995325787,-500.0,0.00043499,30]
[402934407,1768995325855,-500.0,0.00043499,120]
[402934408,1768995325928,-500.0,0.00043499,120]
[402934409,1768995326013,-500.0,0.00043499,30]
[402934410,1768995326087,-500.0,0.00043499,120]
[402934411,1768995326169,-250.0,0.00043499,30]
[402934412,1768995326240,-250.0,0.00043499,120]
[402934413,1768995326313,-250.0,0.00043499,30]
[402934414,1768995326387,-250.0,0.00043499,120]
[402934415,1768995326457,-236.6099063,0.00043499,30]
[402934416,1768995326530,-1000.0,0.00043499,30]
[402934417,1768995326600,-1000.0,0.00043499,120]
[402934418,1768995326672,-500.0,0.00043499,30]
[402934419,1768995326743,-500.0,0.00043499,120]
[402934420,1768995326813,-250.0,0.00043499,30]
[402934421,1768995326882,-250.0,0.00043499,120]
[402934422,1768995326957,-151.0,0.00043499,30]
[402934423,1768995327038,-151.0,0.00043499,120]
[402934424,1768995327110,-151.0,0.00043499,30]
[402934425,1768995327182,-151.0,0.00043499,120]
[402934426,1768995327255,-150.0,0.000435,30]
[402934427,1768995327327,-150.0,0.000435,30]
[402934428,1768995327397,-600.0,0.00043562,120]
[402934429,1768995327468,-250.0,0.00043699,90]
[402934430,1768995327537,-461.67526834,0.00043699,90]
[402934431,1768995327607,-2567.0,0.00043699,90]
[402934432,1768995327680,-2000.0,0.00043699,90]
[402934433,1768995327750,-2000.0,0.00043699,90]
[402934434,1768995327819,-500.0,0.00043699,90]
[402934435,1768995327888,-500.0,0.00043699,90]
[402934436,1768995328138,-500.0,0.00043699,90]
[402934437,1768995328241,-185.84342956,0.00043699,90]
[402934438,1768995328315,-250.0,0.00043699,90]
[402934439,1768995328387,-250.0,0.00043699,90]
[402934440,1768995328460,-168.3888056,0.00043699,90]
[402934441,1768995328530,-168.3888056,0.00043699,90]
[402934442,1768995328603,-1000.0,0.00043699,90]
[402934443,1768995328674,-500.0,0.00043699,90]
[402934444,1768995328745,-250.0,0.00043699,90]
[402934445,1768995328818,-151.0,0.00043699,90]
[402934446,1768995328888,-151.0,0.00043699,90]
[402934447,1768995328959,-150.0,0.00043714,30]
[402934448,1768995329032,-2000.0,0.0004378,60]
[402934449,1768995329106,-250.0,0.0004378,60]
[402934450,1768995329180,-2000.0,0.0004378,60]
[402934451,1768995329253,-445.202766,0.0004378,60]
[402934452,1768995329327,-2567.0,0.0004378,60]
[402934453,1768995329413,-500.0,0.0004378,60]
[402934454,1768995329487,-500.0,0.0004378,60]
[402934455,1768995329561,-500.0,0.0004378,60]
[402934456,1768995329632,-537.6845,0.0004378,60]
[402934457,1768995329704,-250.0,0.0004378,60]
[402934458,1768995329779,-250.0,0.0004378,60]
[402934459,1768995329852,-162.380719,0.0004378,60]
[402934460,1768995329924,-162.380719,0.0004378,60]
[402934461,1768995330000,-1000.0,0.0004378,60]
[402934462,1768995330073,-500.0,0.0004378,60]
[402934463,1768995330147,-250.0,0.0004378,60]
[402934464,1768995330221,-151.0,0.0004378,60]
[402934465,1768995330294,-151.0,0.0004378,60]
[402934466,1768995330364,-2000.0,0.00043834,30]
[402934467,1768995330437,-300.0,0.00043834,30]
[402934468,1768995330508,-2000.0,0.00043834,30]
[402934469,1768995330583,-250.0,0.00043834,30]
[402934470,1768995330654,-6888.0,0.00043834,30]
[402934471,1768995330724,-414.0,0.00043834,30]
[402934472,1768995330795,-2567.0,0.00043834,30]
[402934473,1768995330866,-2000.0,0.00043834,120]
[402934474,1768995330937,-311.1,0.00043834,120]
[402934475,1768995331009,-2000.0,0.00043834,120]
[402934476,1768995331087,-250.0,0.00043834,120]
[402934477,1768995331160,-2013.19685925,0.00043834,120]
[402934478,1768995331231,-2567.0,0.00043834,120]
[402934479,1768995331302,-429.318,0.00043834,120]
[402934480,1768995331372,-500.0,0.00043834,30]
[402934481,1768995331442,-500.0,0.00043834,30]
[402934482,1768995331512,-500.0,0.00043834,120]
[402934483,1768995331584,-500.0,0.00043834,120]
[402934484,1768995331655,-500.0,0.00043834,30]
[402934485,1768995331726,-500.0,0.00043834,30]
[402934486,1768995331800,-250.0,0.00043834,30]
[402934487,1768995331874,-500.0,0.00043834,120]
[402934488,1768995331949,-518.5,0.00043834,120]
[402934489,1768995332028,-250.0,0.00043834,120]
[402934490,1768995332099,-250.0,0.00043834,30]
[402934491,1768995332174,-250.0,0.00043834,120]
[402934492,1768995332244,-151.0,0.00043834,30]
[402934493,1768995332311,-156.587,0.00043834,120]
[402934494,1768995332378,-151.0,0.00043834,30]
[402934495,1768995332445,-1000.0,0.00043834,30]
[402934496,1768995332512,-156.587,0.00043834,120]
[402934497,1768995332583,-1000.0,0.00043834,120]
[402934498,1768995332653,-151.0,0.00043834,30]
[402934499,1768995332722,-500.0,0.00043834,30]
[402934500,1768995332791,-620.0,0.00043834,30]
[402934501,1768995332860,-500.0,0.00043834,120]
[402934502,1768995332930,-250.0,0.00043834,30]
[402934503,1768995333002,-250.0,0.00043834,120]
[402934504,1768995333077,-151.0,0.00043834,30]
[402934505,1768995333152,-151.0,0.00043834,120]
[402934506,1768995333224,-520.0,0.00043834,30]
[402934507,1768995333298,-671.98035234,0.00043834,120]
[402934508,1768995333374,-151.0,0.00043834,30]
[402934509,1768995333449,-151.0,0.00043834,120]
[402934510,1768995333521,-600.0,0.00043836,120]
[402934511,1768995333601,-900.0,0.00043836,35]
[402934512,1768995333671,-150.0,0.00043875,30]
[402934513,1768995333741,-500.0,0.00043904,60]
[402934514,1768995333810,-484.09,0.00043906,30]
[402934515,1768995333882,-484.09,0.00043906,30]
[402934516,1768995333953,-612.13,0.00043906,30]
[402934517,1768995334025,-484.09,0.00043906,30]
[402934518,1768995334095,-612.13,0.00043906,30]
[402934519,1768995334167,-612.13,0.00043906,30]
[402934520,1768995334238,-484.09,0.00043906,30]
[402934521,1768995334310,-612.13,0.00043906,30]
[402934522,1768995334379,-484.09,0.00043906,30]
[402934523,1768995334447,-484.09,0.00043906,30]
[402934524,1768995334515,-612.13,0.00043906,30]
[402934525,1768995334592,-612.13,0.00043906,30]
[402934526,1768995334661,-484.09,0.00043906,30]
[402934527,1768995334733,-484.09,0.00043906,30]
[402934528,1768995334804,-612.13,0.00043906,30]
[402934529,1768995334881,-484.09,0.00043906,30]
[402934530,1768995334966,-612.13,0.00043906,30]
[402934531,1768995335208,-612.13,0.00043906,30]
[402934532,1768995335287,-484.09,0.00043906,30]
[402934533,1768995335359,-612.13,0.00043906,30]
[402934534,1768995335429,-484.09,0.00043906,30]
[402934535,1768995335502,-484.09,0.00043906,30]
[402934536,1768995335573,-612.13,0.00043906,30]
[402934537,1768995335648,-612.13,0.00043909,30]
[402934538,1768995335719,-1114.92,0.00043909,30]
[402934539,1768995335789,-612.13,0.00043909,30]
[402934540,1768995335859,-150.0,0.00044,57]
[402934541,1768995335932,-600.0,0.0004411,120]
[402934542,1768995336005,-150.0,0.00044357,30]
[402934543,1768995336080,-178.06433328,0.00044367,120]
[402934544,1768995336154,-600.0,0.00044384,120]
[402934545,1768995336227,-544.02288568,0.000444,60]
[402934546,1768995336299,-1000.0,0.000444,66]
[402934547,1768995336368,-150.0,0.00044438,30]
[402934548,1768995336438,-500.0,0.00044452,60]
[402934549,1768995336508,-500.0,0.00044452,60]
[402934550,1768995336580,-600.0,0.00044658,120]
[402934551,1768995336654,-200.0,0.00044718,120]
[402934552,1768995336725,-484.09,0.00044865,30]
[402934553,1768995336794,-612.13,0.00044865,30]
[402934554,1768995336865,-484.09,0.00044865,30]
[402934555,1768995336937,-612.13,0.00044865,30]
[402934556,1768995337011,-484.09,0.00044865,30]
[402934557,1768995337083,-612.13,0.00044865,30]
[402934558,1768995337156,-484.09,0.00044865,30]
[402934559,1768995337230,-612.13,0.00044865,30]
[402934560,1768995337300,-612.13,0.00044865,30]
[402934561,1768995337373,-484.09,0.00044865,30]
[402934562,1768995337444,-612.13,0.00044865,30]
[402934563,1768995337513,-164176.960113,0.00044895,30]
[402934564,1768995337587,-32244.35999149,0.00044897,30]
[402934565,1768995337659,-600.0,0.00044932,120]
[402934566,1768995337744,-167958.90439375,0.00044943,30]
[402934567,1768995337813,-13537.11643983,0.00044958,30]
[402934568,1768995337889,-127857.00189625,0.00044968,30]
[402934569,1768995337961,-4426.47244453,0.00044978,30]
[402934570,1768995338033,-171960.48764797,0.00044993,30]
[402934571,1768995338107,-1000.0,0.00044999,120]
[402934572,1768995338182,-500.0,0.00045,60]
[402934573,1768995338248,-7894.9,0.00045,120]
[402934574,1768995338318,-443.30675157,0.00045,30]
[402934575,1768995338387,-153.3,0.00045,120]
[402934576,1768995338455,-2110.0,0.00045,30]
[402934577,1768995338525,-150.0,0.00045,31]
[402934578,1768995338600,-253.0,0.00045,48]